[Event "Titled Tuesday Blitz April 4 Late 2023"]
[White "Somalianwarrior2006"]
[Black "Omelja, Artem"]
[BlackFideId "14119846"]
[WhiteElo "2855"]
[BlackElo "2404"]
[Result "0-1"]
[Round "06"]
[TimeControl "180+2"]
[Date "2023.04.04"]
[WhiteClock "0:00:03"]
[BlackClock "0:00:05"]

1. e4 {[%clk 0:03:00]}  c5 {[%clk 0:02:55]} 2. Nf3 {[%clk 0:03:00]}  Nf6 {[%clk 0:02:46]} 3. Nc3 {[%clk 0:02:58]}  d5 {[%clk 0:02:45]} 4. exd5 {[%clk 0:02:45]}  Nxd5 {[%clk 0:02:38]} 5. d4 {[%clk 0:02:43]}  Nxc3 {[%clk 0:02:30]} 6. bxc3 {[%clk 0:02:44]}  e6 {[%clk 0:02:28]} 7. Bd3 {[%clk 0:02:40]}  Qc7 {[%clk 0:02:23]} 8. O-O {[%clk 0:02:39]}  Bd6 {[%clk 0:02:23]} 9. Re1 {[%clk 0:02:38]}  Nd7 {[%clk 0:02:23]} 10. a4 {[%clk 0:02:31]}  O-O {[%clk 0:02:19]} 11. Qe2 {[%clk 0:02:28]}  Nf6 {[%clk 0:02:18]} 12. Bg5 {[%clk 0:02:27]}  h6 {[%clk 0:02:05]} 13. Bxf6 {[%clk 0:02:21]}  gxf6 {[%clk 0:02:05]} 14. Qe4 {[%clk 0:02:13]}  f5 {[%clk 0:02:05]} 15. Qh4 {[%clk 0:02:12]}  Kg7 {[%clk 0:02:05]} 16. Ne5 {[%clk 0:02:07]}  Qd8 {[%clk 0:01:52]} 17. Qg3+ {[%clk 0:01:28]}  Qg5 {[%clk 0:01:51]} 18. Qxg5+ {[%clk 0:01:28]}  hxg5 {[%clk 0:01:50]} 19. Nc4 {[%clk 0:01:29]}  Rd8 {[%clk 0:01:48]} 20. Nxd6 {[%clk 0:01:16]}  Rxd6 {[%clk 0:01:48]} 21. dxc5 {[%clk 0:01:16]}  Rc6 {[%clk 0:01:36]} 22. Rad1 {[%clk 0:00:32]}  Rxc5 {[%clk 0:01:31]} 23. Be2 {[%clk 0:00:21]}  Rxc3 {[%clk 0:01:20]} 24. Rd8 {[%clk 0:00:21]}  Rxc2 {[%clk 0:01:15]} 25. h4 {[%clk 0:00:21]}  gxh4 {[%clk 0:01:05]} 26. Bf3 {[%clk 0:00:21]}  Rb8 {[%clk 0:00:49]} 27. a5 {[%clk 0:00:20]}  b5 {[%clk 0:00:47]} 28. axb6 {[%clk 0:00:20]}  Rxb6 {[%clk 0:00:46]} 29. Ra1 {[%clk 0:00:19]}  Rc7 {[%clk 0:00:37]} 30. Rd4 {[%clk 0:00:19]}  Ba6 {[%clk 0:00:28]} 31. Rxh4 {[%clk 0:00:17]}  Bb5 {[%clk 0:00:23]} 32. Rb4 {[%clk 0:00:15]}  a6 {[%clk 0:00:19]} 33. g3 {[%clk 0:00:14]}  Rd6 {[%clk 0:00:18]} 34. Bg2 {[%clk 0:00:12]}  Rc5 {[%clk 0:00:18]} 35. Bf1 {[%clk 0:00:11]}  Bxf1 {[%clk 0:00:17]} 36. Kxf1 {[%clk 0:00:12]}  Rc2 {[%clk 0:00:17]} 37. Rf4 {[%clk 0:00:11]}  Kf6 {[%clk 0:00:16]} 38. Ra5 {[%clk 0:00:07]}  Kg5 {[%clk 0:00:16]} 39. Rf3 {[%clk 0:00:06]}  Rb2 {[%clk 0:00:13]} 40. Kg2 {[%clk 0:00:06]}  Rb5 {[%clk 0:00:13]} 41. Ra4 {[%clk 0:00:05]}  a5 {[%clk 0:00:11]} 42. Rff4 {[%clk 0:00:06]}  Rdd5 {[%clk 0:00:11]} 43. Rfc4 {[%clk 0:00:05]}  Rd2 {[%clk 0:00:10]} 44. Rf4 {[%clk 0:00:05]}  Kf6 {[%clk 0:00:09]} 45. Rf3 {[%clk 0:00:05]}  Ke7 {[%clk 0:00:10]} 46. Rff4 {[%clk 0:00:06]}  Kd6 {[%clk 0:00:08]} 47. Rfc4 {[%clk 0:00:06]}  Rdb2 {[%clk 0:00:07]} 48. Ra3 {[%clk 0:00:02]}  R2b4 {[%clk 0:00:07]} 49. Rd3+ {[%clk 0:00:02]}  Ke7 {[%clk 0:00:07]} 50. Rc7+ {[%clk 0:00:03]}  Kf6 {[%clk 0:00:07]} 51. Rdd7 {[%clk 0:00:03]}  Rb2 {[%clk 0:00:07]} 52. Rxf7+ {[%clk 0:00:04]}  Ke5 {[%clk 0:00:08]} 53. Rfe7 {[%clk 0:00:02]}  Rd2 {[%clk 0:00:08]} 54. Rc6 {[%clk 0:00:02]}  Rd6 {[%clk 0:00:08]} 55. Rcc7 {[%clk 0:00:02]}  Rb2 {[%clk 0:00:08]} 56. Ra7 {[%clk 0:00:01]}  Ra2 {[%clk 0:00:07]} 57. Rec7 {[%clk 0:00:01]}  Rdd2 {[%clk 0:00:08]} 58. Rc5+ {[%clk 0:00:01]}  Kf6 {[%clk 0:00:08]} 59. Raxa5 {[%clk 0:00:02]}  Rxf2+ {[%clk 0:00:07]} 60. Kg1 {[%clk 0:00:03]}  Rg2+ {[%clk 0:00:06]} 61. Kh1 {[%clk 0:00:03]}  Rh2+ {[%clk 0:00:06]} 62. Kg1 {[%clk 0:00:03]}  Rhg2+ {[%clk 0:00:05]} 63. Kf1 {[%clk 0:00:04]}  Rxa5 {[%clk 0:00:06]} 64. Rxa5 {[%clk 0:00:04]}  Rxg3 {[%clk 0:00:06]} 65. Kf2 {[%clk 0:00:05]}  Rg4 {[%clk 0:00:07]} 66. Kf3 {[%clk 0:00:06]}  Rc4 {[%clk 0:00:07]} 67. Ra8 {[%clk 0:00:06]}  Rc3+ {[%clk 0:00:07]} 68. Ke2 {[%clk 0:00:06]}  Ke5 {[%clk 0:00:07]} 69. Ra5+ {[%clk 0:00:06]}  Kf4 {[%clk 0:00:06]} 70. Kf2 {[%clk 0:00:06]}  e5 {[%clk 0:00:06]} 71. Ra4+ {[%clk 0:00:06]}  e4 {[%clk 0:00:07]} 72. Ra2 {[%clk 0:00:06]}  Rd3 {[%clk 0:00:06]} 73. Ke2 {[%clk 0:00:07]}  Rh3 {[%clk 0:00:06]} 74. Kf1 {[%clk 0:00:07]}  e3 {[%clk 0:00:06]} 75. Kg2 {[%clk 0:00:07]}  Rg3+ {[%clk 0:00:06]} 76. Kf1 {[%clk 0:00:07]}  Rg8 {[%clk 0:00:04]} 77. Rb2 {[%clk 0:00:06]}  Rc8 {[%clk 0:00:03]} 78. Ke2 {[%clk 0:00:06]}  Rc4 {[%clk 0:00:02]} 79. Ra2 {[%clk 0:00:06]}  Ke4 {[%clk 0:00:03]} 80. Ra8 {[%clk 0:00:05]}  Rc2+ {[%clk 0:00:03]} 81. Ke1 {[%clk 0:00:06]}  Rh2 {[%clk 0:00:03]} 82. Ra3 {[%clk 0:00:04]}  Kf3 {[%clk 0:00:04]} 83. Kd1 {[%clk 0:00:03]}  Rh1+ {[%clk 0:00:04]} 84. Kc2 {[%clk 0:00:04]}  Kf2 {[%clk 0:00:05]} 85. Ra1 {[%clk 0:00:03]}  Rxa1 {[%clk 0:00:05]} 0-1


[Site "https://www.chess.com"]

[Event "Titled Tuesday Blitz April 4 Late 2023"]
[White "Fiorito, Joaquin"]
[Black "Baskakov, Egor"]
[WhiteFideId "180173"]
[BlackFideId "24197866"]
[WhiteElo "2157"]
[BlackElo "2212"]
[Result "1/2-1/2"]
[Round "06"]
[TimeControl "180+2"]
[Date "2023.04.04"]
[WhiteClock "0:00:05"]
[BlackClock "0:00:12"]

1. d4 {[%clk 0:03:00]}  Nf6 {[%clk 0:02:57]} 2. c4 {[%clk 0:03:00]}  e6 {[%clk 0:02:56]} 3. Nc3 {[%clk 0:03:01]}  d5 {[%clk 0:02:57]} 4. Bg5 {[%clk 0:02:58]}  Be7 {[%clk 0:02:57]} 5. e3 {[%clk 0:02:58]}  Ne4 {[%clk 0:02:56]} 6. Bxe7 {[%clk 0:02:54]}  Qxe7 {[%clk 0:02:57]} 7. Rc1 {[%clk 0:02:51]}  c6 {[%clk 0:02:56]} 8. Nxe4 {[%clk 0:02:49]}  dxe4 {[%clk 0:02:56]} 9. Ne2 {[%clk 0:02:50]}  O-O {[%clk 0:02:56]} 10. Nc3 {[%clk 0:02:49]}  f5 {[%clk 0:02:56]} 11. Be2 {[%clk 0:02:49]}  Nd7 {[%clk 0:02:56]} 12. O-O {[%clk 0:02:50]}  e5 {[%clk 0:02:56]} 13. d5 {[%clk 0:02:34]}  Nf6 {[%clk 0:02:57]} 14. Qb3 {[%clk 0:02:30]}  Kh8 {[%clk 0:02:54]} 15. Rfd1 {[%clk 0:02:25]}  f4 {[%clk 0:02:53]} 16. exf4 {[%clk 0:01:50]}  exf4 {[%clk 0:02:52]} 17. f3 {[%clk 0:01:46]}  exf3 {[%clk 0:02:40]} 18. Bxf3 {[%clk 0:01:45]}  Bg4 {[%clk 0:02:40]} 19. Na4 {[%clk 0:01:37]}  cxd5 {[%clk 0:02:30]} 20. cxd5 {[%clk 0:01:34]}  Bxf3 {[%clk 0:02:17]} 21. Qxf3 {[%clk 0:01:33]}  Rad8 {[%clk 0:02:11]} 22. Nc3 {[%clk 0:01:24]}  Qb4 {[%clk 0:01:50]} 23. Rd2 {[%clk 0:01:17]}  Rfe8 {[%clk 0:01:45]} 24. h3 {[%clk 0:01:00]}  Re3 {[%clk 0:01:38]} 25. Qf2 {[%clk 0:01:00]}  Rde8 {[%clk 0:01:12]} 26. d6 {[%clk 0:00:52]}  Rd8 {[%clk 0:01:10]} 27. Rcd1 {[%clk 0:00:52]}  Re6 {[%clk 0:01:02]} 28. d7 {[%clk 0:00:32]}  Re7 {[%clk 0:00:59]} 29. Rd4 {[%clk 0:00:31]}  Qb6 {[%clk 0:00:56]} 30. Rxf4 {[%clk 0:00:13]}  Qxf2+ {[%clk 0:00:53]} 31. Rxf2 {[%clk 0:00:13]}  Rexd7 {[%clk 0:00:53]} 32. Rxd7 {[%clk 0:00:14]}  Rxd7 {[%clk 0:00:54]} 33. Ne4 {[%clk 0:00:14]}  Rf7 {[%clk 0:00:33]} 34. Nxf6 {[%clk 0:00:13]}  gxf6 {[%clk 0:00:34]} 35. Rd2 {[%clk 0:00:12]}  Kg7 {[%clk 0:00:34]} 36. Kf2 {[%clk 0:00:13]}  Rc7 {[%clk 0:00:34]} 37. Kf3 {[%clk 0:00:14]}  Kg6 {[%clk 0:00:34]} 38. b3 {[%clk 0:00:11]}  h5 {[%clk 0:00:34]} 39. Kf4 {[%clk 0:00:11]}  b5 {[%clk 0:00:29]} 40. g4 {[%clk 0:00:10]}  hxg4 {[%clk 0:00:29]} 41. hxg4 {[%clk 0:00:11]}  Rc1 {[%clk 0:00:23]} 42. Rd5 {[%clk 0:00:09]}  Rf1+ {[%clk 0:00:19]} 43. Kg3 {[%clk 0:00:08]}  Ra1 {[%clk 0:00:19]} 44. Rxb5 {[%clk 0:00:08]}  Rxa2 {[%clk 0:00:20]} 45. Kf4 {[%clk 0:00:08]}  Rf2+ {[%clk 0:00:19]} 46. Kg3 {[%clk 0:00:08]}  Rb2 {[%clk 0:00:20]} 47. Kf4 {[%clk 0:00:08]}  a5 {[%clk 0:00:19]} 48. Rb6 {[%clk 0:00:05]}  a4 {[%clk 0:00:18]} 49. g5 {[%clk 0:00:06]}  Rxb3 {[%clk 0:00:11]} 50. Rxf6+ {[%clk 0:00:06]}  Kg7 {[%clk 0:00:11]} 51. Ra6 {[%clk 0:00:06]}  a3 {[%clk 0:00:11]} 52. Kf5 {[%clk 0:00:07]}  Rf3+ {[%clk 0:00:10]} 53. Kg4 {[%clk 0:00:07]}  Rb3 {[%clk 0:00:11]} 54. Kf5 {[%clk 0:00:06]}  Rf3+ {[%clk 0:00:11]} 55. Kg4 {[%clk 0:00:06]}  Rb3 {[%clk 0:00:12]} 56. Kf5 {[%clk 0:00:05]} 1/2-1/2


[Site "https://www.chess.com"]

[Event "Titled Tuesday Blitz April 4 Late 2023"]
[White "Bruedigam, Martin"]
[Black "Bilych, Olexiy"]
[WhiteFideId "24608033"]
[BlackFideId "14156504"]
[WhiteElo "2331"]
[BlackElo "2320"]
[Result "1-0"]
[Round "06"]
[TimeControl "180+2"]
[Date "2023.04.04"]
[WhiteClock "0:00:12"]
[BlackClock "0:00:08"]

1. d4 {[%clk 0:03:00]}  Nf6 {[%clk 0:02:59]} 2. c4 {[%clk 0:03:01]}  e6 {[%clk 0:02:59]} 3. Nc3 {[%clk 0:03:00]}  Bb4 {[%clk 0:02:59]} 4. e3 {[%clk 0:03:00]}  O-O {[%clk 0:02:59]} 5. Bd2 {[%clk 0:03:00]}  d5 {[%clk 0:02:55]} 6. Bd3 {[%clk 0:02:58]}  b6 {[%clk 0:02:52]} 7. Nf3 {[%clk 0:02:56]}  Bb7 {[%clk 0:02:52]} 8. cxd5 {[%clk 0:02:51]}  exd5 {[%clk 0:02:52]} 9. O-O {[%clk 0:02:50]}  Re8 {[%clk 0:02:52]} 10. Qb1 {[%clk 0:02:38]}  h6 {[%clk 0:02:41]} 11. Rc1 {[%clk 0:02:37]}  c5 {[%clk 0:02:25]} 12. a3 {[%clk 0:02:34]}  Bxc3 {[%clk 0:02:20]} 13. bxc3 {[%clk 0:02:34]}  c4 {[%clk 0:02:17]} 14. Bc2 {[%clk 0:02:31]}  Nbd7 {[%clk 0:02:10]} 15. Rf1 {[%clk 0:02:29]}  Ne4 {[%clk 0:02:07]} 16. Be1 {[%clk 0:02:29]}  h5 {[%clk 0:01:47]} 17. Qb2 {[%clk 0:02:25]}  h4 {[%clk 0:01:43]} 18. Nd2 {[%clk 0:02:14]}  h3 {[%clk 0:01:26]} 19. g3 {[%clk 0:02:12]}  Ndf6 {[%clk 0:01:17]} 20. f3 {[%clk 0:02:09]}  Nd6 {[%clk 0:01:15]} 21. Bf2 {[%clk 0:02:07]}  Qd7 {[%clk 0:01:10]} 22. Rae1 {[%clk 0:02:06]}  Re7 {[%clk 0:01:10]} 23. Re2 {[%clk 0:02:05]}  Rae8 {[%clk 0:01:10]} 24. Rfe1 {[%clk 0:02:05]}  g5 {[%clk 0:00:56]} 25. g4 {[%clk 0:02:03]}  Nxg4 {[%clk 0:00:56]} 26. fxg4 {[%clk 0:01:54]}  Qxg4+ {[%clk 0:00:57]} 27. Bg3 {[%clk 0:01:54]}  f5 {[%clk 0:00:57]} 28. Bd1 {[%clk 0:01:41]}  f4 {[%clk 0:00:50]} 29. Qc2 {[%clk 0:01:18]}  Kg7 {[%clk 0:00:27]} 30. Rf2 {[%clk 0:00:45]}  Qd7 {[%clk 0:00:24]} 31. Bxf4 {[%clk 0:00:44]}  gxf4 {[%clk 0:00:24]} 32. Kh1 {[%clk 0:00:44]}  Qf5 {[%clk 0:00:18]} 33. Rg1+ {[%clk 0:00:40]}  Kh8 {[%clk 0:00:17]} 34. Rxf4 {[%clk 0:00:40]}  Qxc2 {[%clk 0:00:15]} 35. Bxc2 {[%clk 0:00:41]}  Ne4 {[%clk 0:00:13]} 36. Nxe4 {[%clk 0:00:13]}  dxe4 {[%clk 0:00:13]} 37. Rg3 {[%clk 0:00:13]}  Bc8 {[%clk 0:00:14]} 38. Bd1 {[%clk 0:00:13]}  Rg7 {[%clk 0:00:13]} 39. Kg1 {[%clk 0:00:13]}  Rxg3+ {[%clk 0:00:12]} 40. hxg3 {[%clk 0:00:13]}  Kg7 {[%clk 0:00:11]} 41. Kh2 {[%clk 0:00:14]}  Rh8 {[%clk 0:00:12]} 42. Bg4 {[%clk 0:00:12]}  Bb7 {[%clk 0:00:11]} 43. Bf5 {[%clk 0:00:12]}  Re8 {[%clk 0:00:09]} 44. Bxh3 {[%clk 0:00:11]}  b5 {[%clk 0:00:09]} 45. Kg2 {[%clk 0:00:12]}  a5 {[%clk 0:00:09]} 46. Bd7 {[%clk 0:00:12]}  Rb8 {[%clk 0:00:09]} 47. Bxb5 {[%clk 0:00:12]}  Bd5 {[%clk 0:00:09]} 48. a4 {[%clk 0:00:12]}  Kg6 {[%clk 0:00:07]} 49. g4 {[%clk 0:00:12]}  Kg5 {[%clk 0:00:07]} 50. Kg3 {[%clk 0:00:12]}  Be6 {[%clk 0:00:07]} 51. Rxe4 {[%clk 0:00:11]}  Kf6 {[%clk 0:00:07]} 52. Rf4+ {[%clk 0:00:11]}  Ke7 {[%clk 0:00:07]} 53. e4 {[%clk 0:00:12]}  Rg8 {[%clk 0:00:08]} 54. d5 {[%clk 0:00:12]}  Bc8 {[%clk 0:00:08]} 55. e5 {[%clk 0:00:12]}  Rxg4+ {[%clk 0:00:08]} 56. Rxg4 {[%clk 0:00:12]} 1-0


[Site "https://www.chess.com"]

[Event "Titled Tuesday Blitz April 4 Late 2023"]
[White "Bolourchifard, Farzad"]
[Black "Escanor89"]
[WhiteFideId "12510084"]
[WhiteElo "2317"]
[BlackElo "2535"]
[Result "1-0"]
[Round "06"]
[TimeControl "180+2"]
[Date "2023.04.04"]
[WhiteClock "0:00:29"]
[BlackClock "0:00:11"]

1. e4 {[%clk 0:03:00]}  c5 {[%clk 0:02:59]} 2. Nc3 {[%clk 0:03:01]}  Nc6 {[%clk 0:02:57]} 3. g3 {[%clk 0:03:01]}  g6 {[%clk 0:02:57]} 4. Bg2 {[%clk 0:03:02]}  Bg7 {[%clk 0:02:58]} 5. d3 {[%clk 0:03:03]}  d6 {[%clk 0:02:58]} 6. Be3 {[%clk 0:03:03]}  Rb8 {[%clk 0:02:58]} 7. Qd2 {[%clk 0:03:03]}  b5 {[%clk 0:02:58]} 8. Nge2 {[%clk 0:03:04]}  b4 {[%clk 0:02:58]} 9. Nd1 {[%clk 0:03:05]}  Nd4 {[%clk 0:02:57]} 10. Nc1 {[%clk 0:03:05]}  e6 {[%clk 0:02:55]} 11. a3 {[%clk 0:03:05]}  a5 {[%clk 0:02:55]} 12. O-O {[%clk 0:03:02]}  Ne7 {[%clk 0:02:50]} 13. axb4 {[%clk 0:03:02]}  axb4 {[%clk 0:02:50]} 14. c3 {[%clk 0:03:03]}  bxc3 {[%clk 0:02:50]} 15. bxc3 {[%clk 0:03:04]}  Ndc6 {[%clk 0:02:41]} 16. Bh6 {[%clk 0:03:04]}  O-O {[%clk 0:02:38]} 17. Bxg7 {[%clk 0:03:05]}  Kxg7 {[%clk 0:02:38]} 18. Ne3 {[%clk 0:03:05]}  Qc7 {[%clk 0:02:27]} 19. Ne2 {[%clk 0:03:05]}  Bd7 {[%clk 0:02:14]} 20. d4 {[%clk 0:03:05]}  Na5 {[%clk 0:02:02]} 21. Ng4 {[%clk 0:02:42]}  Ng8 {[%clk 0:01:45]} 22. Rab1 {[%clk 0:02:43]}  Bb5 {[%clk 0:01:29]} 23. d5 {[%clk 0:02:22]}  Nc4 {[%clk 0:01:11]} 24. Qd1 {[%clk 0:02:16]}  e5 {[%clk 0:01:06]} 25. h4 {[%clk 0:01:43]}  h5 {[%clk 0:01:01]} 26. Nh2 {[%clk 0:01:43]}  Nf6 {[%clk 0:00:54]} 27. Re1 {[%clk 0:01:43]}  Na3 {[%clk 0:00:45]} 28. Ra1 {[%clk 0:01:41]}  Bxe2 {[%clk 0:00:40]} 29. Qxe2 {[%clk 0:01:39]}  Nb5 {[%clk 0:00:39]} 30. Rec1 {[%clk 0:01:35]}  Rb6 {[%clk 0:00:34]} 31. Bf1 {[%clk 0:01:32]}  Rfb8 {[%clk 0:00:33]} 32. Nf3 {[%clk 0:01:30]}  Na7 {[%clk 0:00:29]} 33. Ra2 {[%clk 0:01:18]}  Nc8 {[%clk 0:00:26]} 34. Ng5 {[%clk 0:01:18]}  Ne7 {[%clk 0:00:19]} 35. Bh3 {[%clk 0:01:13]}  Nh7 {[%clk 0:00:17]} 36. Nxh7 {[%clk 0:00:59]}  Kxh7 {[%clk 0:00:16]} 37. Kg2 {[%clk 0:00:50]}  Kg7 {[%clk 0:00:17]} 38. Rca1 {[%clk 0:00:48]}  Ng8 {[%clk 0:00:15]} 39. Ra7 {[%clk 0:00:47]}  R6b7 {[%clk 0:00:16]} 40. Rxb7 {[%clk 0:00:42]}  Rxb7 {[%clk 0:00:16]} 41. Ra6 {[%clk 0:00:42]}  Nf6 {[%clk 0:00:16]} 42. Rc6 {[%clk 0:00:42]}  Qe7 {[%clk 0:00:15]} 43. Kh2 {[%clk 0:00:34]}  Rc7 {[%clk 0:00:14]} 44. f3 {[%clk 0:00:32]}  Rxc6 {[%clk 0:00:12]} 45. dxc6 {[%clk 0:00:32]}  Qc7 {[%clk 0:00:13]} 46. Qa6 {[%clk 0:00:33]}  d5 {[%clk 0:00:13]} 47. Qb7 {[%clk 0:00:31]}  Qa5 {[%clk 0:00:11]} 48. Be6 {[%clk 0:00:29]} 1-0


[Site "https://www.chess.com"]

[Event "Titled Tuesday Blitz April 4 Late 2023"]
[White "Hansen, Sune Berg"]
[Black "Petrovic, Aleksa"]
[WhiteFideId "1400266"]
[BlackFideId "967629"]
[WhiteElo "2713"]
[BlackElo "2309"]
[Result "1-0"]
[Round "06"]
[TimeControl "180+2"]
[Date "2023.04.04"]
[WhiteClock "0:00:29"]
[BlackClock "0:00:04"]

1. Nf3 {[%clk 0:03:00]}  Nf6 {[%clk 0:02:59]} 2. g3 {[%clk 0:02:59]}  b6 {[%clk 0:02:55]} 3. Bg2 {[%clk 0:02:58]}  Bb7 {[%clk 0:02:55]} 4. O-O {[%clk 0:02:58]}  c5 {[%clk 0:02:54]} 5. d3 {[%clk 0:02:57]}  g6 {[%clk 0:02:53]} 6. e4 {[%clk 0:02:56]}  Bg7 {[%clk 0:02:52]} 7. Ng5 {[%clk 0:02:56]}  Qc8 {[%clk 0:02:31]} 8. f4 {[%clk 0:02:54]}  O-O {[%clk 0:02:29]} 9. Nc3 {[%clk 0:02:50]}  d6 {[%clk 0:02:15]} 10. a4 {[%clk 0:02:46]}  Nc6 {[%clk 0:02:11]} 11. Bd2 {[%clk 0:02:41]}  Nd4 {[%clk 0:01:55]} 12. Rb1 {[%clk 0:02:28]}  h6 {[%clk 0:01:45]} 13. Nh3 {[%clk 0:02:26]}  Nd7 {[%clk 0:01:43]} 14. Nd5 {[%clk 0:02:22]}  Qd8 {[%clk 0:01:39]} 15. c3 {[%clk 0:02:20]}  Nc6 {[%clk 0:01:29]} 16. Ne3 {[%clk 0:02:09]}  e6 {[%clk 0:01:15]} 17. Nf2 {[%clk 0:02:08]}  f5 {[%clk 0:01:13]} 18. Qe2 {[%clk 0:02:05]}  Qc7 {[%clk 0:01:11]} 19. Rfe1 {[%clk 0:02:04]}  Rae8 {[%clk 0:01:10]} 20. Rbd1 {[%clk 0:01:44]}  Kh7 {[%clk 0:01:00]} 21. Bc1 {[%clk 0:01:43]}  Ba6 {[%clk 0:00:59]} 22. Qc2 {[%clk 0:01:43]}  Nf6 {[%clk 0:00:55]} 23. g4 {[%clk 0:01:37]}  Qd7 {[%clk 0:00:34]} 24. h3 {[%clk 0:01:33]}  d5 {[%clk 0:00:27]} 25. e5 {[%clk 0:01:30]}  Ng8 {[%clk 0:00:26]} 26. Nf1 {[%clk 0:01:27]}  d4 {[%clk 0:00:24]} 27. Ng3 {[%clk 0:01:25]}  Nge7 {[%clk 0:00:24]} 28. Bd2 {[%clk 0:01:16]}  Nd5 {[%clk 0:00:23]} 29. gxf5 {[%clk 0:01:07]}  gxf5 {[%clk 0:00:22]} 30. Kh2 {[%clk 0:01:03]}  Rg8 {[%clk 0:00:20]} 31. Rg1 {[%clk 0:01:03]}  Ne3 {[%clk 0:00:15]} 32. Bxe3 {[%clk 0:01:02]}  dxe3 {[%clk 0:00:16]} 33. Nfh1 {[%clk 0:01:01]}  Qe7 {[%clk 0:00:13]} 34. Bxc6 {[%clk 0:00:59]}  Qh4 {[%clk 0:00:10]} 35. Bxe8 {[%clk 0:00:58]}  Qxf4 {[%clk 0:00:10]} 36. Rdf1 {[%clk 0:00:54]}  Qxe5 {[%clk 0:00:10]} 37. d4 {[%clk 0:00:49]}  cxd4 {[%clk 0:00:09]} 38. cxd4 {[%clk 0:00:48]}  Qxd4 {[%clk 0:00:09]} 39. Bf7 {[%clk 0:00:46]}  Rc8 {[%clk 0:00:06]} 40. Qd1 {[%clk 0:00:43]}  Bxf1 {[%clk 0:00:04]} 41. Rxf1 {[%clk 0:00:39]}  Qxd1 {[%clk 0:00:03]} 42. Rxd1 {[%clk 0:00:37]}  Rc2+ {[%clk 0:00:04]} 43. Kg1 {[%clk 0:00:36]}  e2 {[%clk 0:00:03]} 44. Re1 {[%clk 0:00:36]}  Bd4+ {[%clk 0:00:03]} 45. Kg2 {[%clk 0:00:35]}  Rxb2 {[%clk 0:00:03]} 46. Rxe2 {[%clk 0:00:35]}  Rxe2+ {[%clk 0:00:04]} 47. Nxe2 {[%clk 0:00:33]}  Bb2 {[%clk 0:00:04]} 48. Bxe6 {[%clk 0:00:33]}  Kg6 {[%clk 0:00:04]} 49. Nhg3 {[%clk 0:00:31]}  a6 {[%clk 0:00:03]} 50. Bxf5+ {[%clk 0:00:30]}  Kg5 {[%clk 0:00:04]} 51. Bd3 {[%clk 0:00:31]}  b5 {[%clk 0:00:04]} 52. a5 {[%clk 0:00:30]}  Bc3 {[%clk 0:00:04]} 53. Nxc3 {[%clk 0:00:29]} 1-0


[Site "https://www.chess.com"]

[Event "Titled Tuesday Blitz April 4 Late 2023"]
[White "Loiacono, Antonio"]
[Black "Iliaguev, Nisim"]
[WhiteFideId "895415"]
[BlackFideId "2817276"]
[WhiteElo "2257"]
[BlackElo "2241"]
[Result "1-0"]
[Round "06"]
[TimeControl "180+2"]
[Date "2023.04.04"]
[WhiteClock "0:00:06"]
[BlackClock "0:00:04"]

1. e4 {[%clk 0:03:00]}  c6 {[%clk 0:02:55]} 2. d4 {[%clk 0:03:00]}  d5 {[%clk 0:02:56]} 3. e5 {[%clk 0:03:00]}  Bf5 {[%clk 0:02:56]} 4. Nd2 {[%clk 0:03:00]}  e6 {[%clk 0:02:56]} 5. Nb3 {[%clk 0:03:00]}  Ne7 {[%clk 0:02:56]} 6. Nf3 {[%clk 0:03:00]}  h6 {[%clk 0:02:56]} 7. Be2 {[%clk 0:02:59]}  Nd7 {[%clk 0:02:56]} 8. c3 {[%clk 0:02:57]}  c5 {[%clk 0:02:56]} 9. Nxc5 {[%clk 0:02:54]}  Nxc5 {[%clk 0:02:56]} 10. dxc5 {[%clk 0:02:55]}  Nc6 {[%clk 0:02:56]} 11. b4 {[%clk 0:02:53]}  Be7 {[%clk 0:02:56]} 12. a3 {[%clk 0:02:47]}  O-O {[%clk 0:02:56]} 13. O-O {[%clk 0:02:47]}  Qc7 {[%clk 0:02:53]} 14. Bf4 {[%clk 0:02:44]}  Rad8 {[%clk 0:02:52]} 15. Nd4 {[%clk 0:02:41]}  Bg6 {[%clk 0:02:50]} 16. Nxc6 {[%clk 0:02:41]}  bxc6 {[%clk 0:02:50]} 17. Bg3 {[%clk 0:02:37]}  Qb7 {[%clk 0:02:27]} 18. Qd4 {[%clk 0:02:33]}  f5 {[%clk 0:02:13]} 19. f4 {[%clk 0:01:37]}  Kh7 {[%clk 0:02:13]} 20. Rfb1 {[%clk 0:01:36]}  Be8 {[%clk 0:02:13]} 21. a4 {[%clk 0:01:33]}  a6 {[%clk 0:02:12]} 22. Bf2 {[%clk 0:01:29]}  Bd7 {[%clk 0:02:11]} 23. Qd3 {[%clk 0:01:26]}  Ra8 {[%clk 0:02:10]} 24. c4 {[%clk 0:01:11]}  g5 {[%clk 0:02:06]} 25. cxd5 {[%clk 0:01:11]}  exd5 {[%clk 0:02:00]} 26. g3 {[%clk 0:01:06]}  gxf4 {[%clk 0:01:59]} 27. gxf4 {[%clk 0:01:07]}  Rg8+ {[%clk 0:01:51]} 28. Kh1 {[%clk 0:01:06]}  Be6 {[%clk 0:01:50]} 29. Bd4 {[%clk 0:00:43]}  Rg7 {[%clk 0:01:41]} 30. b5 {[%clk 0:00:42]}  axb5 {[%clk 0:01:40]} 31. axb5 {[%clk 0:00:41]}  Rxa1 {[%clk 0:01:35]} 32. Rxa1 {[%clk 0:00:39]}  cxb5 {[%clk 0:01:33]} 33. Qxb5 {[%clk 0:00:39]}  Qc8 {[%clk 0:01:22]} 34. Ra6 {[%clk 0:00:23]}  Qg8 {[%clk 0:00:44]} 35. Qc6 {[%clk 0:00:21]}  Rg6 {[%clk 0:00:32]} 36. Bh5 {[%clk 0:00:20]}  Rg4 {[%clk 0:00:07]} 37. Qxe6 {[%clk 0:00:17]}  Qb8 {[%clk 0:00:06]} 38. Qxe7+ {[%clk 0:00:12]}  Kg8 {[%clk 0:00:05]} 39. Qe6+ {[%clk 0:00:08]}  Kg7 {[%clk 0:00:02]} 40. Qxh6+ {[%clk 0:00:07]}  Kg8 {[%clk 0:00:02]} 41. Rg6+ {[%clk 0:00:05]}  Rxg6 {[%clk 0:00:03]} 42. Qxg6+ {[%clk 0:00:06]}  Kh8 {[%clk 0:00:04]} 43. e6+ {[%clk 0:00:06]} 1-0


[Site "https://www.chess.com"]